[Event "Romanian Championship 2024"]
[Site "Eforie Nord"]
[Date "2024.03.02"]
[Round "9.11"]
[White "Ciorgovean, Iustin"]
[Black "Vilcu, Matei-Stefan"]
[Result "1-0"]
[ECO "B55"]
[WhiteElo "2310"]
[BlackElo "2176"]
[Annotator "TA"]
[PlyCount "81"]
[EventDate "2024.02.24"]
[EventType "swiss"]
[EventCountry "ROU"]
[SourceTitle "playchess.com"]
[Source "ChessBase"]
[SourceQuality "1"]
[TimeControl "40/5400+30:900+30"]

{[%evp 11,81,13,17,12,14,12,20,0,18,13,23,0,14,13,15,6,0,0,0,0,0,0,0,0,13,12,52,41,87,39,50,52,45,40,36,41,52,42,116,117,151,154,268,267,312,319,303,279,410,405,402,238,534,530,727,695,721,611,752,753,753,752,744,736,747,738,738,738,712,661,612,566]} 1. e4 {[%emt 0:00:01]} c5 {[%emt 0:00:11]} 2. Nf3 {[%emt 0:00:04]} d6 {[%emt 0:00:03]} 3. d4 {[%emt 0:00:03]} cxd4 {[%emt 0:00:04]} 4. Nxd4 {[%emt 0:00:03]} Nf6 {[%emt 0:00:05]} 5. f3 {[%emt 0:00:02]} e5 {[%emt 0:00:51]} 6. Nb3 {[%emt 0:00:04]} d5 {[%emt 0:00:58]} 7. Bg5 {[%emt 0:00:07]} d4 {[%emt 0:00:19]} 8. c3 {[%emt 0:00:11]} Nc6 {[%emt 0:00:36]} 9. cxd4 {[%emt 0:00:15] The position is equal.} Bb4+ $1 {[%emt 0:00:08]} 10. Bd2 {[%emt 0:00:08][%cal Bg5d2,Bd2b4,Bb4c5][%mdl 32]} Nxe4 $1 {[%emt 0:01:21] ...Qh4+ is the strong threat.} 11. Bxb4 {[%emt 0:00:49]} Qh4+ {[%emt 0:00:57]} 12. g3 {[%emt 0:00:19]} Nxg3 {[%emt 0:00:13]} 13. hxg3 {[%emt 0:00:03]} Qxh1 {[%emt 0:00:14]} 14. Bc5 {[%emt 0:00:05]} Bh3 {[%emt 0:04:31]} 15. N1d2 {[%emt 0:00:23]} O-O-O {[%emt 0:03:35][%cal Re5d4]} 16. Qc2 {[%emt 0:00:08] Threatens to win with 0-0-0.} Bxf1 {[%emt 0:04:31]} 17. O-O-O {[%emt 0:00:04]} Kb8 {[%emt 0:11:59][%cal Oh1h6] White must now prevent ...Qh6!} 18. Rxf1 {[%emt 0:03:48]} Qh6 {[%emt 0:06:52]} 19. dxe5 {[%emt 0:03:10]} Nxe5 {[%emt 0:01:56][%cal Bc6e5,Be5d3,Bd3e1][%mdl 32] ...b6 would now be deadly.} 20. Kb1 {[%emt 0:02:08]} ({White should play} 20. Bxa7+ $16 Kxa7 21. Qc5+ b6 22. Qxe5) 20... Rhe8 {[%emt 0:06:18]} 21. g4 {[%emt 0:10:57]} Nd3 {[%emt 0:14:10] Hoping for ...Ne1.} 22. Bd4 {[%emt 0:06:17]} Ne1 {[%emt 0:23:10]} 23. Qc5 {[%emt 0:04:39] Really sharp!} Qg6+ {[%emt 0:07:14]} 24. Qf5 $1 {[%emt 0:15:02]} Re2 {[%emt 0:01:36] [#] White now steadily converts the win.} (24... Qxf5+ $14 25. gxf5 g6) 25. Qxg6 $1 $16 {[%emt 0:03:24]} hxg6 {[%emt 0:00:20]} 26. Bxg7 {[%emt 0:00:30]} a5 {[%emt 0:01:28]} (26... Ng2 $16) 27. Bc3 $18 {[%emt 0:01:30]} a4 {[%emt 0:00:42]} 28. Nd4 {[%emt 0:05:23]} Ree8 {[%emt 0:02:44]} (28... Rxd4 29. Bxd4 Rxd2 30. Be5+ Kc8 31. Rxe1 $18) 29. Nc4 {[%emt 0:01:47]} Nd3 {[%emt 0:00:13]} (29... Ng2 $142 30. a3 Ne3 31. Nxe3 Rxe3) 30. Rd1 {[%emt 0:02:28]} Nf4 {[%emt 0:00:18] [#]} 31. Ne5 $1 {[%emt 0:07:20][%mdl 512]} f6 $2 {[%emt 0:02:46] [#]} (31... Rxe5 $2 {is the wrong capture.} 32. Nc6+ Kc7 33. Bxe5+ $18 (33. Nxd8 Re3 $18)) (31... f5 32. gxf5 gxf5 (32... Rxe5 $2 {perishes.} 33. Nc6+ bxc6 34. Bxe5+ Kc8 35. Rxd8+ Kxd8 36. Bxf4 $18)) (31... Ka8 32. Nc4) 32. Ndc6+ $1 {[%emt 0:00:48][%mdl 512] White is clearly winning.} bxc6 {[%emt 0:00:09]} (32... Kc8 33. Nxd8) 33. Nxc6+ {[%emt 0:00:05]} Kc8 {[%emt 0:00:43]} 34. Nxd8 {[%emt 0:00:06]} Rxd8 {[%emt 0:00:11]} 35. Rxd8+ {[%emt 0:00:04]} Kxd8 {[%emt 0:00:04]} 36. Bxf6+ {[%emt 0:00:04] KB-KN} Kd7 {[%emt 0:00:10]} 37. Kc2 {[%emt 0:00:29]} Kd6 {[%emt 0:01:10]} 38. Bg5 {[%emt 0:01:44]} Ne6 {[%emt 0:00:20]} 39. Be3 {[%emt 0:00:18]} Kc6 {[%emt 0:00:57]} 40. Kc3 {[%emt 0:00:00]} Kb5 {[%emt 0:00:00]} 41. Kd3 {[%emt 0:01:57] Weighted Error Value: White=0.13 (very precise) /Black=0.31.  Mistake:       	White=2     	Black=4      Inaccurate:     	---       	Black=3      OK:         	White=12    	Black=8      Best:        	White=3     	Black=2      Strong:       	White=2     	Black=2} 1-0

[Event "Romanian Championship 2024"]
[Site "Eforie Nord"]
[Date "2024.03.02"]
[Round "9.12"]
[White "Prisacaru, Stefan-Emilian"]
[Black "Craciun, Sasha-Matei"]
[Result "1-0"]
[ECO "D35"]
[WhiteElo "2289"]
[BlackElo "2080"]
[Annotator "TA"]
[PlyCount "73"]
[EventDate "2024.02.24"]
[EventType "swiss"]
[EventCountry "ROU"]
[SourceTitle "playchess.com"]
[Source "ChessBase"]
[SourceQuality "1"]
[TimeControl "40/5400+30:900+30"]

{[%evp 18,73,33,25,33,32,37,22,31,19,27,3,31,17,125,145,131,144,129,139,171,164,162,150,160,74,143,141,158,159,186,152,198,208,198,199,209,194,195,169,153,134,285,113,412,433,507,534,470,493,438,199,204,201,206,205,461,450]} 1. d4 {[%emt 0:00:01]} d5 {[%emt 0:06:46]} 2. c4 {[%emt 0:00:05]} e6 {[%emt 0:00:02]} 3. Nf3 {[%emt 0:00:05]} Nf6 {[%emt 0:00:04]} 4. Nc3 {[%emt 0:00:04]} Be7 {[%emt 0:00:03]} 5. cxd5 {[%emt 0:00:21]} exd5 {[%emt 0:00:18]} 6. Bf4 {[%emt 0:00:05]} c6 {[%emt 0:00:33]} 7. h3 {[%emt 0:00:06]} Nbd7 {[%emt 0:01:11]} 8. e3 {[%emt 0:02:26]} O-O {[%emt 0:00:52]} 9. Bd3 {[%emt 0:00:28]} Re8 {[%emt 0:00:15]} 10. O-O {[%emt 0:02:52]} Nf8 {[%emt 0:00:23]} 11. Bh2 {[%emt 0:02:55]} Ng6 {[%emt 0:01:15]} 12. Ne5 {[%emt 0:00:26]} Nxe5 {[%emt 0:04:14] The position is equal.} 13. dxe5 {[%emt 0:02:58]} Nd7 {[%emt 0:01:43]} 14. f4 {[%emt 0:00:22]} Bc5 {[%emt 0:12:01]} 15. Rf3 {[%emt 0:16:13]} d4 {[%emt 0:07:53]} (15... f6 $11) 16. Ne4 $1 $16 {[%emt 0:09:48]} dxe3 {[%emt 0:03:09]} 17. Qc2 {[%emt 0:00:20]} Be7 {[%emt 0:12:25]} 18. Kh1 {[%emt 0:09:51] White is much more active.} ({Resist} 18. Rxe3 Qb6 19. Rae1 Bb4) 18... Qa5 {[%emt 0:10:01]} 19. Rxe3 {[%emt 0:10:08]} Nf8 {[%emt 0:05:09]} 20. Rf1 {[%emt 0:02:19] aiming for f5.} Bf5 {[%emt 0:02:39][%cal Oe8d8]} 21. g4 {[%emt 0:03:00]} (21. Bc4 $142 {[%cal Oe4f6] Nf6+! is the strong threat.} g6 22. g4) 21... Bxe4+ {[%emt 0:01:20]} (21... Be6 $142) 22. Rxe4 {[%emt 0:00:52]} ({But not} 22. Bxe4 $6 Rad8 $14) 22... Ne6 {[%emt 0:04:55][%cal Oa8d8] [#]} 23. Ra4 $1 {[%emt 0:05:01]} Qd5+ {[%emt 0:00:38]} 24. Be4 {[%emt 0:00:29]} Qb5 {[%emt 0:00:37]} (24... Qd8 $16 25. Bxh7+ Kf8) 25. Bxh7+ $18 {[%emt 0:00:40]} Kh8 {[%emt 0:00:02]} 26. Bd3 {[%emt 0:00:18][%cal Bh7d3,Bd3e4,Be4g2][%mdl 32]} Qd5+ {[%emt 0:00:03]} 27. Be4 {[%emt 0:03:30]} Qb5 {[%emt 0:00:25]} 28. Bg2 $36 {[%emt 0:03:57][%mdl 2048] Hoping for f5. White is on the roll.} Red8 {[%emt 0:00:42]} 29. Re4 {[%emt 0:03:36] Strongly threatening f5.} Rd3 $2 {[%emt 0:02:54]} (29... Nc5 $16 {keeps fighting.}) 30. Rfe1 $2 {[%emt 0:08:22]} (30. f5 $18 Ng5 31. f6 Nxe4 32. fxe7) 30... Rd7 $2 {[%emt 0:01:49][%mdl 8192]} (30... Nc5 $16) 31. f5 {[%emt 0:01:05][%cal Bf4f5,Bf5e6,Be6e7][%mdl 32]} Ng5 {[%emt 0:01:32]} 32. e6 {[%emt 0:00:19]} fxe6 {[%emt 0:02:14]} 33. fxe6 {[%emt 0:00:02]} Rd5 {[%emt 0:01:41]} 34. Re5 {[%emt 0:00:42]} (34. R4e3 $142) 34... Qd3 {[%emt 0:03:05]} 35. Qxd3 {[%emt 0:09:54]} Rxd3 {[%emt 0:00:02]} 36. Rf1 {[%emt 0:00:21] Wards off Rf8} Bf6 $2 {[%emt 0:01:19] [#]} (36... Kg8 37. h4 Nh7) 37. e7 $1 {[%emt 0:01:25] Weighted Error Value: White=0.28 (precise) /Black=0.50.  Loses game:     	---       	Black=1      Missed win:     	White=1     	---        Mistake:       	White=2     	Black=5      Inaccurate:     	---       	Black=1      OK:         	White=7     	Black=8      Best:        	White=5     	Black=2      Strong:       	White=3     	---} 1-0

[Event "Romanian Championship 2024"]
[Site "Eforie Nord"]
[Date "2024.03.02"]
[Round "9.13"]
[White "Nastase, Robert-Paul"]
[Black "Negrean, Andrei"]
[Result "0-1"]
[ECO "B23"]
[WhiteElo "2226"]
[BlackElo "1990"]
[Annotator "TA"]
[PlyCount "115"]
[EventDate "2024.02.24"]
[EventType "swiss"]
[EventCountry "ROU"]
[SourceTitle "playchess.com"]
[Source "ChessBase"]
[SourceQuality "1"]
[TimeControl "40/5400+30:900+30"]

{[%evp 9,115,11,22,12,12,-12,0,0,44,29,39,23,30,25,27,25,31,8,13,24,17,8,37,-187,-183,-164,-186,-185,-185,-185,-190,-196,-177,-193,-186,-179,-168,-289,-274,-367,-356,-369,-362,-368,-330,-377,-375,-456,-417,-449,-441,-535,-529,-534,-509,-1276,-683,-5691,-662,-600,-570,-732,-701,-893,-860,-927,-925,-1233,-1164,-1403,-1395,-1339,-1332,-5660,-5543,-5699,-5543,-5808,-5808,-5736,-5730,-5600,-5583,-4627,-4614,-5695,-5106,-12793,-12793,-6211,-5804,-29980,-29976,-29984,-29985,-29987,-29988,-29990,-29991,-29991,-29992,-29992,-29993,-29993,-29994,-29995,-29996,-29997]} 1. e4 {[%emt 0:00:16]} c5 {[%emt 0:00:09]} 2. Nc3 {[%emt 0:00:05]} Nc6 {[%emt 0:00:09]} 3. Bb5 {[%emt 0:00:02]} Nd4 {[%emt 0:00:09]} 4. Nf3 {[%emt 0:00:03]} a6 {[%emt 0:00:24]} 5. Bd3 {[%emt 0:00:04][%cal Bb5d3,Bd3c2,Bc2e4][%mdl 32]} Nc6 {[%emt 0:00:16]} 6. O-O {[%emt 0:00:06]} e6 {[%emt 0:00:24]} 7. Nd5 {[%emt 0:00:04][%cal Oh2h3]} Bd6 {[%emt 0:06:41]} (7... g5 $5) 8. Ne3 {[%emt 0:00:28] Die Stellung ist ausgeglichen.} Nge7 {[%emt 0:02:49]} 9. c3 {[%emt 0:00:38]} Bc7 {[%emt 0:10:26]} 10. Bc2 {[%emt 0:00:10]} d5 {[%emt 0:08:57]} 11. d4 {[%emt 0:00:02]} cxd4 {[%emt 0:02:57]} 12. Nxd4 {[%emt 0:00:08]} Nxd4 {[%emt 0:06:29]} 13. cxd4 {[%emt 0:00:31]} dxe4 {[%emt 0:00:59]} 14. Bxe4 {[%emt 0:00:03]} O-O {[%emt 0:01:53]} 15. b3 {[%emt 0:00:09]} Nd5 {[%emt 0:06:08]} 16. Bb2 $2 {[%emt 0:00:03] [#] Ein Fehler, der zur Niederlage führt.} (16. Qc2 $14 {behält die Oberhand.}) 16... Nxe3 $1 $40 {[%emt 0:07:42][%mdl 128] Schwarz riecht Blut.} 17. fxe3 {[%emt 0:00:02]} Qh4 $1 {[%emt 0:00:09][%csl LRe4,LRh2]} 18. Rf4 {[%emt 0:00:01]} Bxf4 {[%emt 0:00:25]} 19. exf4 {[%emt 0:00:04]} Qxf4 {[%emt 0:03:55]} 20. Qd3 {[%emt 0:00:01] Verhindert Qe3+.} f5 {[%emt 0:07:00]} 21. Bf3 {[%emt 0:00:01]} Bd7 {[%emt 0:04:55] Droht stark ...Bb5.} 22. Bxb7 {[%emt 0:00:01]} Bb5 {[%emt 0:01:42]} 23. Qc3 {[%emt 0:00:01]} (23. Qf3 {ist eine bessere Verteidigung.} Qxf3 24. Bxf3) 23... Rab8 {[%emt 0:01:05]} 24. Bf3 {[%emt 0:00:03]} Rbc8 {[%emt 0:02:42] Lässt d5 nicht zu} 25. Qe1 {[%emt 0:00:00]} Rc2 {[%emt 0:03:40]} 26. Rb1 {[%emt 0:01:34]} Re8 {[%emt 0:04:30][%cal Oe6e5]} 27. Bd1 {[%emt 0:01:52]} Rd2 {[%emt 0:05:59] [#] ...Bc6 wäre nun fies.} 28. Bc3 {[%emt 0:00:07]} Rxa2 {[%emt 0:01:30][%cal Oe6e5] Und jetzt ...e5! wäre schön.} 29. Bf3 {[%emt 0:00:03]} Bd3 {[%emt 0:01:21]} 30. Rd1 {[%emt 0:00:07]} Be4 {[%emt 0:00:40]} 31. Bxe4 {[%emt 0:04:33]} Qxe4 {[%emt 0:00:08]} 32. Qg3 {[%emt 0:00:51]} (32. Qxe4 $142 fxe4 33. Be1) 32... f4 {[%emt 0:00:57]} 33. Qh3 {[%emt 0:00:18]} Qe3+ {[%emt 0:00:28]} (33... Rc8 $142 34. d5 Rxc3 35. Qxe6+ Qxe6 36. dxe6 Kf8 (36... Rxb3 37. Rd8#)) 34. Qxe3 {[%emt 0:00:05]} fxe3 {[%emt 0:00:01][%mdl 4096] Endspiel. KRR-KRB} 35. Re1 {[%emt 0:00:06]} e2 {[%emt 0:00:11] Droht ...Rc8 und aus.} 36. Kf2 {[%emt 0:00:08]} Rc8 {[%emt 0:00:38]} 37. Bb4 {[%emt 0:00:08]} Rb8 {[%emt 0:00:37]} 38. Bc5 {[%emt 0:00:07]} Rxb3 {[%emt 0:00:08] Und ...a5 würde nun gewinnen.} 39. Rxe2 {[%emt 0:00:02]} Rxe2+ {[%emt 0:00:05]} 40. Kxe2 {[%emt 0:00:00] KR-KB} a5 {[%emt 0:00:00]} 41. Kd2 {[%emt 0:00:07]} Rb2+ {[%emt 0:00:15]} 42. Kc3 {[%emt 0:00:06]} Rxg2 {[%emt 0:00:03]} 43. Bd6 {[%emt 0:00:05]} g5 {[%emt 0:00:22]} 44. Kb3 {[%emt 0:00:03]} Kf7 {[%emt 0:00:08]} 45. Ka4 {[%emt 0:00:04]} Ra2+ {[%emt 0:00:12]} 46. Kb3 {[%emt 0:00:03]} Rd2 {[%emt 0:00:12]} 47. Be5 {[%emt 0:00:03]} Kg6 {[%emt 0:00:09] Weiss muss nun ...Kf5 beachten.} 48. Ka4 {[%emt 0:00:02]} Kf5 {[%emt 0:00:08]} 49. Kxa5 {[%emt 0:00:05]} Ke4 {[%emt 0:00:04] ( -> ...g4)} 50. Bf6 {[%emt 0:00:08]} Rxd4 {[%emt 0:00:05] Schwarz setzt Matt.} 51. Bxd4 {[%emt 0:00:04]} Kxd4 {[%emt 0:00:03] KP-KP} 52. Kb5 {[%emt 0:00:04]} e5 {[%emt 0:00:03]} 53. Kc6 {[%emt 0:00:02]} e4 {[%emt 0:00:04]} 54. Kd6 {[%emt 0:00:02]} e3 {[%emt 0:00:04]} 55. Ke6 {[%emt 0:00:02]} e2 {[%emt 0:00:05]} 56. Kf5 {[%emt 0:00:04]} e1=Q {[%emt 0:00:04]} 57. Kxg5 {[%emt 0:00:02]} Ke5 {[%emt 0:00:11]} 58. h3 {[%emt 0:00:03] Gewichteter Fehlerwert: Weiß=0.83/Schwarz=0.42.  Verlustzug:     	Weiß=1     	---        Fehler:       	Weiß=2     	---        Ungenau:       	Weiß=2     	Schwarz=3     OK:         	Weiß=8     	Schwarz=15    Bester:       	Weiß=1     	Schwarz=1     Stark:        	---       	Schwarz=1} 0-1

[Event "Romanian Championship 2024"]
[Site "Eforie Nord"]
[Date "2024.03.02"]
[Round "9.14"]
[White "Coicev, Matei-Andrei"]
[Black "Daianu, Cristian-Clement"]
[Result "1-0"]
[ECO "A31"]
[WhiteElo "2122"]
[BlackElo "2201"]
[Annotator "RC"]
[PlyCount "79"]
[EventDate "2024.02.24"]
[EventType "swiss"]
[EventCountry "ROU"]
[SourceTitle "playchess.com"]
[Source "ChessBase"]
[SourceQuality "1"]
[TimeControl "40/5400+30:900+30"]

1. e4 {[%emt 0:00:02]} c5 {[%emt 0:00:07]} 2. Nf3 {[%emt 0:00:11]} d6 {[%emt 0:00:09]} 3. d4 {[%emt 0:00:06]} cxd4 {[%emt 0:00:08]} 4. Nxd4 {[%emt 0:00:05]} Nf6 {[%emt 0:00:06]} 5. Bd3 {[%emt 0:00:04]} g6 {[%emt 0:03:08]} 6. O-O {[%emt 0:00:27]} Bg7 {[%emt 0:00:06]} 7. c4 {[%emt 0:00:11]} Nc6 {[%emt 0:00:25]} 8. Nxc6 {[%emt 0:03:38]} bxc6 {[%emt 0:00:47]} 9. Nc3 {[%emt 0:01:31]} O-O {[%emt 0:01:43]} 10. Qe2 {[%emt 0:02:14]} Qa5 {[%emt 0:07:52]} 11. Bd2 {[%emt 0:07:04]} Rb8 {[%emt 0:03:06]} 12. b3 {[%emt 0:01:37]} Qh5 {[%emt 0:03:46]} 13. Qxh5 {[%emt 0:03:33]} Nxh5 {[%emt 0:00:17]} 14. Rac1 {[%emt 0:01:33]} f5 {[%emt 0:03:51]} 15. exf5 {[%emt 0:03:51]} gxf5 {[%emt 0:00:26]} 16. Be2 {[%emt 0:05:02]} Nf6 {[%emt 0:06:11]} 17. Bf3 {[%emt 0:01:51]} Bb7 {[%emt 0:02:21]} 18. Rfe1 {[%emt 0:05:52]} e5 {[%emt 0:06:13]} 19. Be3 {[%emt 0:04:20]} Nd7 {[%emt 0:00:54]} 20. Red1 {[%emt 0:05:52]} e4 {[%emt 0:10:47]} 21. Rxd6 {[%emt 0:05:54]} Ne5 {[%emt 0:09:41]} 22. Be2 {[%emt 0:00:51]} f4 {[%emt 0:06:46]} 23. Bxa7 {[%emt 0:05:42]} f3 {[%emt 0:00:06]} 24. Bf1 {[%emt 0:03:54]} fxg2 {[%emt 0:00:45]} 25. Kxg2 {[%emt 0:03:24]} Ra8 {[%emt 0:08:36]} 26. Bc5 {[%emt 0:05:11]} Rf4 {[%emt 0:07:33]} 27. Be2 {[%emt 0:02:55]} Nf3 {[%emt 0:04:00]} 28. Bxf3 {[%emt 0:03:36]} exf3+ {[%emt 0:02:11]} 29. Kh1 {[%emt 0:00:33]} Bc8 {[%emt 0:06:19]} 30. Rd8+ {[%emt 0:02:41]} Kf7 {[%emt 0:00:22]} 31. Re1 {[%emt 0:03:02]} Rf5 {[%emt 0:06:27]} 32. Ne4 {[%emt 0:02:06]} Be5 {[%emt 0:00:38]} 33. Nd6+ {[%emt 0:02:15]} Bxd6 {[%emt 0:00:09]} 34. Bxd6 {[%emt 0:00:01]} Rg5 {[%emt 0:01:00]} 35. Re7+ {[%emt 0:16:51]} Kg6 {[%emt 0:01:04]} 36. Rg8+ Kf6 {[%emt 0:00:30]} 37. Rf8+ {[%emt 0:01:00]} Kg6 38. Be5 h6 {[%emt 0:01:00]} 39. h4 {[%emt 0:01:00]} Rg2 {[%emt 0:00:30]} 40. Bg3 {[%emt 0:00:30]} 1-0

[Event "Romanian Championship 2024"]
[Site "Eforie Nord"]
[Date "2024.03.02"]
[Round "9.15"]
[White "Sava, Robert-Gabriel"]
[Black "Maximov, Oleg"]
[Result "1/2-1/2"]
[ECO "E92"]
[WhiteElo "2053"]
[BlackElo "2186"]
[Annotator "RC"]
[PlyCount "99"]
[EventDate "2024.02.24"]
[EventType "swiss"]
[EventCountry "ROU"]
[SourceTitle "playchess.com"]
[Source "ChessBase"]
[SourceQuality "1"]
[TimeControl "40/5400+30:900+30"]

1. d4 {[%emt 0:00:04]} Nf6 {[%emt 0:00:05]} 2. c4 {[%emt 0:00:04]} d6 {[%emt 0:00:07]} 3. Nc3 {[%emt 0:00:13]} e5 {[%emt 0:00:03]} 4. Nf3 exd4 {[%emt 0:00:07]} 5. Nxd4 {[%emt 0:00:49]} g6 {[%emt 0:00:06]} 6. e4 {[%emt 0:01:20]} Bg7 {[%emt 0:00:06]} 7. Be2 {[%emt 0:00:09]} O-O {[%emt 0:00:10]} 8. Be3 {[%emt 0:00:08]} Re8 {[%emt 0:00:09]} 9. f3 {[%emt 0:00:28]} c6 {[%emt 0:08:58]} 10. Bf2 {[%emt 0:04:32]} Nbd7 {[%emt 0:02:39]} 11. O-O {[%emt 0:00:35]} Ne5 {[%emt 0:02:16]} 12. Re1 {[%emt 0:01:51]} a5 {[%emt 0:06:23]} 13. Bf1 {[%emt 0:00:47]} Nh5 {[%emt 0:03:08]} 14. Qd2 {[%emt 0:04:21]} a4 {[%emt 0:00:41]} 15. Rad1 {[%emt 0:00:17]} a3 {[%emt 0:00:48]} 16. b3 {[%emt 0:05:21]} Qf6 {[%emt 0:04:31]} 17. Be3 {[%emt 0:01:16]} Bf8 {[%emt 0:00:28]} 18. Be2 {[%emt 0:02:14]} Qg7 {[%emt 0:00:55]} 19. g4 {[%emt 0:00:59]} Nf6 {[%emt 0:00:18]} 20. h3 {[%emt 0:01:01]} h6 {[%emt 0:04:59]} 21. f4 {[%emt 0:01:22]} Ned7 {[%emt 0:01:51]} 22. Bf3 {[%emt 0:01:10]} Nc5 {[%emt 0:00:40]} 23. Qg2 {[%emt 0:00:39]} Nfd7 {[%emt 0:04:05]} 24. h4 {[%emt 0:01:38]} Ne6 {[%emt 0:08:30]} 25. Nce2 {[%emt 0:01:32]} c5 {[%emt 0:08:57]} 26. Nb5 {[%emt 0:00:33]} f5 {[%emt 0:06:19]} 27. gxf5 {[%emt 0:01:11]} gxf5 {[%emt 0:00:05]} 28. exf5 {[%emt 0:00:15]} Qxg2+ {[%emt 0:00:14]} 29. Bxg2 {[%emt 0:00:09]} Ng7 {[%emt 0:00:06]} 30. Bf2 {[%emt 0:01:21]} Rb8 {[%emt 0:01:13]} 31. Ng3 {[%emt 0:02:44]} Rxe1+ {[%emt 0:00:26]} 32. Bxe1 {[%emt 0:00:19]} Nf6 {[%emt 0:01:22]} 33. Bc3 {[%emt 0:00:16]} Ng4 {[%emt 0:03:53]} 34. f6 {[%emt 0:02:01]} Ne6 {[%emt 0:00:19]} 35. Bd5 {[%emt 0:04:21]} Ne3 {[%emt 0:01:49]} 36. f5 {[%emt 0:09:22]} Nxd5 {[%emt 0:00:09]} 37. fxe6 {[%emt 0:00:47]} Nxc3 {[%emt 0:00:06]} 38. e7 {[%emt 0:00:08]} Bg4 {[%emt 0:00:11]} 39. Nxc3 {[%emt 0:00:58]} Bxd1 {[%emt 0:00:09]} 40. Nxd1 {[%emt 0:00:00]} Kf7 {[%emt 0:00:00]} 41. exf8=Q+ {[%emt 0:01:03]} Rxf8 {[%emt 0:01:28]} 42. Ne4 {[%emt 0:00:09]} Rg8+ {[%emt 0:03:06]} 43. Kf2 {[%emt 0:00:15]} Rg4 {[%emt 0:00:08]} 44. Ndc3 {[%emt 0:00:17]} Rxh4 {[%emt 0:00:13]} 45. Kg3 {[%emt 0:01:36]} Rh1 {[%emt 0:00:22]} 46. Nb5 {[%emt 0:00:59]} b6 {[%emt 0:10:41]} 47. Nbxd6+ {[%emt 0:01:52]} Ke6 {[%emt 0:05:01]} 48. f7 {[%emt 0:11:40]} Rf1 {[%emt 0:31:10]} 49. Nf2 {[%emt 0:54:54]} Ke7 {[%emt 0:00:30]} 50. Nfe4 {[%emt 0:00:30]} 1/2-1/2

[Event "Romanian Championship 2024"]
[Site "Eforie Nord"]
[Date "2024.03.02"]
[Round "9.16"]
[White "Nastore, Pavel-Alexandru"]
[Black "Stanica, Andrei"]
[Result "1-0"]
[ECO "C88"]
[WhiteElo "2182"]
[BlackElo "1720"]
[Annotator "RC"]
[PlyCount "55"]
[EventDate "2024.02.24"]
[EventType "swiss"]
[EventCountry "ROU"]
[SourceTitle "playchess.com"]
[Source "ChessBase"]
[SourceQuality "1"]
[TimeControl "40/5400+30:900+30"]

1. e4 {[%emt 0:00:07]} e5 {[%emt 0:00:10]} 2. Nf3 {[%emt 0:00:04]} Nc6 {[%emt 0:00:04]} 3. Bb5 {[%emt 0:00:05]} a6 {[%emt 0:00:06]} 4. Ba4 {[%emt 0:00:03]} Nf6 {[%emt 0:00:05]} 5. O-O {[%emt 0:00:06]} Be7 {[%emt 0:00:03]} 6. Re1 {[%emt 0:00:05]} b5 {[%emt 0:00:03]} 7. Bb3 {[%emt 0:00:04]} O-O {[%emt 0:00:06]} 8. a4 {[%emt 0:00:02]} Bb7 {[%emt 0:00:08]} 9. d3 {[%emt 0:02:23]} d6 {[%emt 0:01:09]} 10. Nc3 {[%emt 0:06:57]} b4 {[%emt 0:00:54]} 11. Ne2 {[%emt 0:00:05]} Na5 {[%emt 0:00:36]} 12. Ba2 {[%emt 0:00:14]} c5 {[%emt 0:00:09]} 13. Ng3 {[%emt 0:00:22]} Bc8 {[%emt 0:02:09]} 14. h3 {[%emt 0:07:45]} h6 {[%emt 0:00:23]} 15. c3 {[%emt 0:10:52]} Rb8 {[%emt 0:11:27]} 16. d4 {[%emt 0:07:35]} bxc3 {[%emt 0:02:46]} 17. bxc3 {[%emt 0:00:07]} Qc7 {[%emt 0:00:51]} 18. Nh4 {[%emt 0:14:03]} c4 {[%emt 0:08:27]} 19. Nhf5 {[%emt 0:02:04]} Bxf5 {[%emt 0:04:56]} 20. Nxf5 {[%emt 0:00:53]} Nb3 {[%emt 0:01:06]} 21. Ba3 {[%emt 0:03:11]} Nxa1 {[%emt 0:23:34]} 22. dxe5 {[%emt 0:02:25]} dxe5 {[%emt 0:04:25]} 23. Bxe7 {[%emt 0:01:55]} Nb3 {[%emt 0:01:20]} 24. Bxf6 {[%emt 0:00:17]} Qb6 {[%emt 0:02:17]} 25. Bxg7 {[%emt 0:02:56]} Rfe8 {[%emt 0:00:37]} 26. Bxh6 {[%emt 0:02:57]} Rbd8 {[%emt 0:00:25]} 27. Qe2 {[%emt 0:01:10]} Qc6 {[%emt 0:01:39]} 28. Rb1 {[%emt 0:04:03]} 1-0